fUSD/lending_fUSD_20241001
["ID","MTS","AMOUNT","RATE_DAILY","PERIOD"]
[339636453,1727777278843,282.96,0.00022,120]
[339636454,1727777422764,150.0,9.936e-05,2]
[339636455,1727777422788,150.0,9.936e-05,2]
[339636456,1727777422811,150.0,9.936e-05,2]
[339636457,1727777422835,150.0,9.936e-05,2]
[339636458,1727777422859,150.0,9.936e-05,2]
[339636459,1727777422881,150.0,9.936e-05,2]
[339636460,1727777422904,150.0,9.936e-05,2]
[339636461,1727777422929,150.0,9.936e-05,2]
[339636462,1727777422951,150.0,9.936e-05,2]
[339636463,1727777422977,57.38,9.936e-05,2]
[339636471,1727777432339,-187.74,0.00010019,2]
[339636472,1727777432349,-600.0,0.00010068,2]
[339636473,1727777432358,-600.0,0.00010068,2]
[339636474,1727777432367,-500.0,0.00010068,2]
[339636475,1727777432377,-426.25,0.0001017,2]
[339636476,1727777432386,-250.0,0.0001018,2]
[339636477,1727777432395,-171.77,0.00010181,2]
[339636478,1727777432404,-582.24,0.00010184,2]
[339636479,1727777432414,-3.65818036,0.00010226,2]
[339636480,1727777432426,-296.34181964,0.00010226,2]
[339636481,1727777432436,-203.93216326,0.00010227,2]
[339636482,1727777432447,-3897.67600053,0.00010227,2]
[339636483,1727777432458,-1084.67183621,0.00010227,2]
[339636484,1727777432467,-250.0,0.00010238,2]
[339636485,1727777432476,-442.04,0.00010293,2]
[339636486,1727777432487,-355.62034615,0.0001053,2]
[339636487,1727777432498,-644.37965385,0.0001053,2]
[339636488,1727777432507,-586.9,0.00010584,2]
[339636489,1727777432516,-1474.21087968,0.00010732,2]
[339636490,1727777432532,-800.0,0.00010732,2]
[339636491,1727777432543,-3598.78912032,0.00010732,2]
[339636492,1727777432552,-159.227,0.00010732,2]
[339636493,1727777432561,-13504.0,0.00010732,2]
[339636494,1727777432571,-1148.0,0.00010732,2]
[339636495,1727777432580,-499.99,0.00010898,2]
[339636496,1727777432589,-220.3187769,0.00010899,2]
[339636498,1727777432598,-220.31877689,0.000109,2]
[339636499,1727777432607,-160.07,0.00010959,2]
[339636501,1727777432617,-160.078,0.00010959,2]
[339636503,1727777432626,-508.36,0.00010959,2]
[339636504,1727777432635,-411.998,0.00010959,2]
[339636506,1727777432645,-15389.87043975,0.0001098,2]
[339636508,1727777432654,-423.21,0.00010986,2]
[339636509,1727777432664,-1476.39,0.00010986,2]
[339636511,1727777432673,-423.21,0.00010986,2]
[339636513,1727777432683,-423.21,0.00010986,2]
[339636515,1727777432693,-201.04,0.00010986,2]
[339636517,1727777432702,-150.0,0.00010989,2]
[339636518,1727777432711,-35618.70228319,0.0001099,2]
[339636536,1727777438474,-663.2,0.0001099,2]
[339636537,1727777438486,-582.24356216,0.0001099,2]
[339636538,1727777438497,-2510.72,0.0001099,2]
[339636539,1727777438509,-2051.00370932,0.0001099,2]
[339636540,1727777438599,-39308.3975168,0.0001099,2]
[339636541,1727777438610,-154.82,0.0001099,2]
[339636542,1727777438619,-172494.2810017,0.00010998,2]
[339636543,1727777438628,-10535.7753325,0.00010998,2]
[339636544,1727777438638,-537.44873354,0.00010999,2]
[339636545,1727777438648,-321.17917049,0.00010999,2]
[339636546,1727777438658,-207.7867421,0.00011,2]
[339636547,1727777438668,-80709.3590008,0.00011,2]
[339636548,1727777438678,-1417578.64358921,0.00011,2]
[339636558,1727777440345,-5224.46361802,0.00011,2]
[339636559,1727777440356,-1170.15,0.00011,2]
[339636560,1727777440367,-2546.88,0.00011,2]
[339636561,1727777440378,-1493.397668,0.00011,2]
[339636596,1727777443301,-100996.62359016,0.00011,2]
[339636597,1727777443323,-589.97098,0.00011,2]
[339636598,1727777443487,-1388.82081271,0.00011,2]
[339636601,1727777459119,500.0,8.972e-05,2]
[339636602,1727777474256,150.0,0.00021999,120]
[339636603,1727777561531,150.0,9.92e-05,2]
[339636604,1727777561551,850.0,9.92e-05,2]
[339636605,1727777611332,150.0,9.968e-05,2]
[339636606,1727777611356,103.71936463,9.968e-05,2]
[339636607,1727777706567,619.52,0.00021999,120]
[339636608,1727777706831,619.52,0.00021999,120]
[339636609,1727777707103,619.52,0.00021999,120]
[339636610,1727777707379,619.52,0.00021999,120]
[339636611,1727777707632,619.52,0.00021999,120]
[339636612,1727777707912,619.52,0.00021999,120]
[339636613,1727777708179,619.52,0.00021999,120]
[339636614,1727777708439,619.52,0.00021999,120]
[339636615,1727777708705,619.52,0.00021999,120]
[339636616,1727777708973,619.52,0.00021999,120]
[339636617,1727777709238,619.52,0.00021999,120]
[339636618,1727777709492,619.52,0.00021999,120]
[339636619,1727777709771,619.52,0.00021999,120]
[339636620,1727777710063,619.52,0.00021999,120]
[339636621,1727777710337,619.52,0.00021999,120]
[339636622,1727777710591,619.52,0.00021999,120]
[339636623,1727777710838,619.52,0.00021999,120]
[339636624,1727777711137,619.52,0.00021999,120]
[339636625,1727777711401,619.52,0.00021999,120]
[339636626,1727777711651,619.52,0.00021999,120]
[339636627,1727777711905,619.52,0.00021999,120]
[339636628,1727777712185,619.52,0.00021999,120]
[339636629,1727777712473,619.52,0.00021999,120]
[339636630,1727777712748,619.63259865,0.00021999,120]
[339636631,1727777767963,150.0,0.0001,2]
[339636632,1727777767985,150.0,0.0001,2]
[339636633,1727777768006,150.0,0.0001,2]
[339636634,1727777768028,150.0,0.0001,2]
[339636635,1727777768062,292.92949801,0.0001,2]
[339636636,1727777768082,1624.06050199,0.0001,2]
[339636637,1727777771643,150.0,9.925e-05,2]
[339636638,1727777771664,100.0,9.925e-05,2]
[339636639,1727777812537,150.0,9.925e-05,2]
[339636640,1727777812559,150.0,9.925e-05,2]
[339636641,1727777812593,150.0,9.925e-05,2]
[339636642,1727777812616,150.0,9.925e-05,2]
[339636643,1727777812637,150.0,9.925e-05,2]
[339636644,1727777812660,150.0,9.925e-05,2]
[339636645,1727777812681,20546.37,9.925e-05,2]
[339636646,1727777827671,150.0,8.219e-05,2]
[339636647,1727777827693,150.0,8.219e-05,2]
[339636648,1727777827718,150.0,8.219e-05,2]
[339636649,1727777827741,294.22,8.219e-05,2]
[339636650,1727777827764,13.17,8.219e-05,2]
[339636651,1727777876065,150.0,9.917e-05,2]
[339636652,1727777876088,150.0,9.917e-05,2]
[339636653,1727777876110,150.0,9.917e-05,2]
[339636654,1727777876130,150.0,9.917e-05,2]
[339636655,1727777876153,150.0,9.917e-05,2]
[339636656,1727777876174,150.0,9.917e-05,2]
[339636657,1727777876198,150.0,9.917e-05,2]
[339636658,1727777889259,150.0,9.917e-05,2]
[339636659,1727777889280,150.0,9.917e-05,2]
[339636660,1727777889304,88.04,9.917e-05,2]
[339636661,1727777926775,150.0,9.917e-05,2]
[339636662,1727777926795,150.0,9.917e-05,2]
[339636663,1727777959255,150.0,9.917e-05,2]
[339636664,1727777959277,150.0,9.917e-05,2]
[339636665,1727777959298,150.0,9.917e-05,2]
[339636666,1727777959318,150.0,9.917e-05,2]
[339636667,1727777959338,150.0,9.917e-05,2]
[339636668,1727777959359,150.0,9.917e-05,2]
[339636669,1727777959378,450.0,9.917e-05,2]
[339636670,1727778042191,150.0,9.968e-05,2]
[339636671,1727778042211,150.0,9.968e-05,2]
[339636672,1727778042232,255.52523652,9.968e-05,2]
[339636673,1727778042255,150.0,9.968e-05,2]
[339636674,1727778042276,150.0,9.968e-05,2]
[339636675,1727778042296,150.0,9.968e-05,2]
[339636676,1727778042317,150.0,9.968e-05,2]
[339636677,1727778042339,150.0,9.968e-05,2]
[339636678,1727778042363,4.1908164,9.968e-05,2]
[339636679,1727778058432,150.0,9.919e-05,2]
[339636680,1727778058454,150.0,9.919e-05,2]
[339636681,1727778058475,150.0,9.919e-05,2]
[339636682,1727778058497,150.0,9.919e-05,2]
[339636683,1727778058519,289.59263936,9.919e-05,2]
[339636684,1727778058539,175.52736064,9.919e-05,2]
[339636685,1727778105254,150.0,9.919e-05,2]
[339636686,1727778105277,548.27,9.919e-05,2]
[339636687,1727778147995,150.0,9.921e-05,2]
[339636688,1727778148017,100.0,9.921e-05,2]
[339636690,1727778158775,150.0,0.00010006,2]
[339636691,1727778181173,150.0,9.92e-05,2]
[339636692,1727778181198,850.0,9.92e-05,2]
[339636693,1727778231841,150.0,8.972e-05,2]
[339636694,1727778231862,150.0,8.972e-05,2]
[339636695,1727778231884,150.0,8.972e-05,2]
[339636696,1727778231912,150.0,8.972e-05,2]
[339636697,1727778231933,200.0,8.972e-05,2]
[339636698,1727778261511,150.0,9.884e-05,2]
[339636699,1727778261532,150.0,9.884e-05,2]
[339636700,1727778261553,87.67,9.884e-05,2]
[339636701,1727778261739,62.33,9.887e-05,2]
[339636702,1727778261760,295.90244508,9.887e-05,2]
[339636703,1727778261782,29.43755492,9.887e-05,2]
[339636704,1727778261959,150.0,9.889e-05,2]
[339636705,1727778261982,150.0,9.889e-05,2]
[339636706,1727778262005,87.67,9.889e-05,2]
[339636707,1727778262190,150.0,9.892e-05,2]
[339636708,1727778262212,237.67,9.892e-05,2]
[339636709,1727778262411,387.67,9.894e-05,2]
[339636710,1727778262623,387.67,9.897e-05,2]
[339636711,1727778262868,387.67,9.9e-05,2]
[339636712,1727778263063,387.67,9.902e-05,2]
[339636713,1727778263258,387.67,9.905e-05,2]
[339636714,1727778263531,387.67,9.907e-05,2]
[339636715,1727778263733,387.67,9.91e-05,2]
[339636716,1727778263950,387.67,9.913e-05,2]
[339636717,1727778264264,387.67,9.915e-05,2]
[339636718,1727778264463,387.67,9.918e-05,2]
[339636719,1727778266751,387.67,9.92e-05,2]
[339636720,1727778266954,150.0,9.923e-05,2]
[339636721,1727778266975,237.67,9.923e-05,2]
[339636722,1727778267183,150.0,9.926e-05,2]
[339636723,1727778267204,237.67,9.926e-05,2]
[339636724,1727778267386,150.0,9.928e-05,2]
[339636725,1727778267587,150.0,9.928e-05,2]
[339636726,1727778267608,87.67,9.928e-05,2]
[339636727,1727778267648,150.0,9.931e-05,2]
[339636728,1727778267670,150.0,9.931e-05,2]
[339636729,1727778267691,87.67,9.931e-05,2]
[339636730,1727778267807,150.0,9.934e-05,2]
[339636731,1727778267828,150.0,9.934e-05,2]
[339636732,1727778267849,87.67,9.934e-05,2]
[339636733,1727778290426,150.0,8.972e-05,2]
[339636734,1727778290448,350.0,8.972e-05,2]
[339636735,1727778302607,150.0,9.888e-05,2]
[339636736,1727778305700,150.0,9.888e-05,2]
[339636737,1727778308785,150.0,9.888e-05,2]
[339636738,1727778308809,0.51117443,9.888e-05,2]
[339636739,1727778313734,150.0,9.888e-05,2]
[339636740,1727778316651,150.0,9.888e-05,2]
[339636741,1727778320473,150.0,9.888e-05,2]
[339636742,1727778320497,0.10019286,9.888e-05,2]
[339636743,1727778322387,149.89980714,9.888e-05,2]
[339636744,1727778322410,0.10019286,9.888e-05,2]
[339636745,1727778324252,150.0,9.888e-05,2]
[339636746,1727778324272,0.09114238,9.888e-05,2]
[339636748,1727778326145,150.0,9.888e-05,2]
[339636749,1727778331371,150.0,9.888e-05,2]
[339636750,1727778336496,150.0,9.888e-05,2]
[339636751,1727778336518,0.50610793,9.888e-05,2]
[339636752,1727778338285,150.0,9.888e-05,2]
[339636753,1727778348014,1279.09,8.219e-05,2]
[339636754,1727778355948,150.0,6.94e-05,2]
[339636755,1727778355970,150.0,6.94e-05,2]
[339636756,1727778355993,143.6779364,6.94e-05,2]
[339636757,1727778366753,250.0,9.871e-05,2]
[339636758,1727778368552,967.70739442,0.0001,2]
[339636759,1727778381010,4141.43,9.871e-05,2]
[339636761,1727778408813,166.27,9.871e-05,2]
[339636762,1727778414526,150.0,9.822e-05,2]
[339636763,1727778414550,50.0,9.822e-05,2]
[339636764,1727778459976,574.07,9.871e-05,2]
[339636765,1727778473063,507.43872926,9.999e-05,2]
[339636766,1727778479206,150.0,0.0001,2]
[339636767,1727778479228,150.0,0.0001,2]
[339636768,1727778479250,150.0,0.0001,2]
[339636769,1727778479270,150.0,0.0001,2]
[339636770,1727778479292,150.0,0.0001,2]
[339636771,1727778479312,150.0,0.0001,2]
[339636772,1727778479333,288.51199901,0.0001,2]
[339636773,1727778479353,21259.14649858,0.0001,2]
[339636774,1727778490514,210.07,9.589e-05,2]
[339636776,1727778520391,2588.9696044,0.0001,2]
[339636777,1727778523753,12193.78380278,0.0001,2]
[339636778,1727778523778,30156.46070228,0.0001,2]
[339636779,1727778622128,1336.81,9.868e-05,2]
[339636796,1727778631472,-700.0,0.00010068,2]
[339636798,1727778631482,-150.0,0.00010099,2]
[339636800,1727778631492,-142.32592759,0.000101,2]
[339636807,1727778631565,-1075.9549519,0.000101,2]
[339636808,1727778631578,-18080.63554323,0.000101,2]
[339636809,1727778631592,-439.35,0.000101,2]
[339636810,1727778631605,-1879.8522855,0.000101,2]
[339636811,1727778631617,-268.07010932,0.000101,2]
[339636812,1727778631630,-1378.29577402,0.000101,2]
[339636813,1727778631642,-427.51880542,0.000101,2]
[339636814,1727778631655,-1382.78807392,0.000101,2]
[339636815,1727778631675,-80875.02165,0.000101,2]
[339636816,1727778631688,-3804.41474252,0.000101,2]
[339636817,1727778631702,-762.24895185,0.000101,2]
[339636818,1727778631715,-737.53093385,0.000101,2]
[339636819,1727778631725,-150.0,0.00010254,2]
[339636820,1727778631735,-150.0,0.00010254,2]
[339636821,1727778631746,-479.8963608,0.00010342,2]
[339636822,1727778631763,-320.1036392,0.00010342,2]
[339636823,1727778631773,-150.0,0.00010437,2]
[339636824,1727778631784,-469.72361059,0.00010469,2]
[339636825,1727778631796,-622.0,0.00010469,2]
[339636826,1727778631809,-187.36638941,0.00010469,2]
[339636827,1727778631820,-150.0,0.0001062,2]
[339636828,1727778631831,-150.0,0.0001062,2]
[339636829,1727778631840,-150.0,0.00010726,2]
[339636830,1727778631851,-70.77361059,0.00010733,2]
[339636831,1727778631863,-79.22638941,0.00010733,2]
[339636832,1727778631873,-404.15469418,0.00010733,2]
[339636833,1727778631891,-1106.02,0.00010733,2]
[339636836,1727778631904,-467.10530582,0.00010733,2]
[339636838,1727778631914,-324.7,0.00010733,2]
[339636840,1727778631925,-150.0,0.00010742,2]
[339636842,1727778631935,-150.0,0.00010748,2]
[339636844,1727778631946,-150.0,0.00010753,2]
[339636846,1727778631956,-150.0,0.00010757,2]
[339636848,1727778631967,-150.0,0.00010767,2]
[339636850,1727778631977,-150.0,0.00010768,2]
[339636852,1727778631987,-150.0,0.00010773,2]
[339636855,1727778631997,-150.0,0.00010777,2]
[339636856,1727778632007,-150.0,0.00010778,2]
[339636857,1727778632018,-150.0,0.00010779,2]
[339636858,1727778632029,-150.0,0.00010786,2]
[339636859,1727778632040,-150.0,0.00010788,2]
[339636860,1727778632051,-150.0,0.00010788,2]
[339636861,1727778632061,-150.0,0.00010799,2]
[339636862,1727778632071,-973.2950942,0.000108,2]
[339636863,1727778632082,-618.98,0.000108,2]
[339636864,1727778632092,-150.0,0.00010828,2]
[339636865,1727778632102,-150.0,0.00010829,2]
[339636866,1727778632112,-150.0,0.00010837,2]
[339636867,1727778632123,-150.0,0.00010847,2]
[339636868,1727778632134,-150.0,0.00010861,2]
[339636869,1727778632144,-150.0,0.00010861,2]
[339636870,1727778632154,-150.0,0.00010865,2]
[339636871,1727778632164,-110.56824696,0.00010875,2]
[339636872,1727778632177,-39.43175304,0.00010875,2]
[339636873,1727778632187,-150.0,0.00010887,2]
[339636874,1727778632197,-564.62649077,0.00010888,2]
[339636875,1727778632208,-150.0,0.00010891,2]
[339636876,1727778632219,-150.0,0.00010897,2]
[339636877,1727778632229,-150.0,0.00010897,2]
[339636878,1727778632239,-398.71089808,0.00010898,2]
[339636879,1727778632251,-3155.96712328,0.00010898,2]
[339636880,1727778632264,-4465.79597286,0.00010898,2]
[339636889,1727778637499,-717.96206054,0.00010898,2]
[339636890,1727778637585,-7692.05424524,0.00010898,2]
[339636891,1727778637595,-4390.2506,0.00010898,2]
[339636892,1727778637604,-939.9731,0.00010898,2]
[339636893,1727778637613,-4995.0844,0.00010898,2]
[339636894,1727778637623,-7569.8585,0.00010898,2]
[339636895,1727778637632,-1203.495,0.00010898,2]
[339636896,1727778637642,-1000.0,0.00010898,2]
[339636897,1727778637651,-500.0,0.00010898,2]
[339636898,1727778637660,-767.1747,0.00010898,2]
[339636899,1727778637669,-526.0268,0.00010898,2]
[339636900,1727778637678,-10000.0,0.000109,2]
[339636901,1727778637687,-162.4216167,0.000109,2]
[339636902,1727778637696,-14976.71061387,0.000109,2]
[339636903,1727778637705,-531.28460302,0.000109,2]
[339636904,1727778637715,-321.4929109,0.000109,2]
[339636905,1727778637724,-150.0,0.00010903,2]
[339636906,1727778637733,-500.0,0.00010912,2]
[339636907,1727778637742,-150.0,0.00010922,2]
[339636908,1727778637752,-329.599,0.0001093,2]
[339636909,1727778637762,-150.0,0.0001093,2]
[339636910,1727778637771,-150.0,0.00010931,2]
[339636911,1727778637780,-150.0,0.00010936,2]
[339636912,1727778637790,-150.0,0.00010948,2]
[339636913,1727778637799,-150.0,0.00010954,2]
[339636914,1727778637808,-200.85,0.00010959,2]
[339636915,1727778637817,-163.92,0.00010959,2]
[339636916,1727778637826,-406.68,0.00010959,2]
[339636917,1727778637835,-150.0,0.00010966,2]
[339636918,1727778637845,-150.0,0.00010986,2]
[339636919,1727778637854,-150.0,0.00010986,2]
[339636920,1727778637863,-150.0,0.00010986,2]
[339636921,1727778637872,-150.0,0.00010986,2]
[339636922,1727778637881,-151.18089715,0.00010986,2]
[339636923,1727778637891,-154.82,0.0001099,2]
[339636924,1727778637900,-150.0,0.00010995,2]
[339636925,1727778637909,-82301.2046062,0.00010998,2]
[339636926,1727778637919,-4981.6248292,0.00010998,2]
[339636927,1727778637928,-166.22939368,0.00011,2]
[339636929,1727778637938,-66865.57341182,0.00011,2]
[339636930,1727778637947,-1905.0,0.00011,2]
[339636931,1727778637956,-554.733,0.00011,2]
[339636932,1727778637966,-1910.0,0.00011,2]
[339636933,1727778637976,-3350.0,0.00011,2]
[339636934,1727778637985,-810.0,0.00011,2]
[339636935,1727778637994,-1082.0,0.00011,2]
[339636936,1727778638004,-5873.0,0.00011,2]
[339636937,1727778638013,-625.0,0.00011,2]
[339636938,1727778638023,-150.0,0.00011,2]
[339636940,1727778638033,-1296.0,0.00011,2]
[339636942,1727778638042,-455.731,0.00011,2]
[339636944,1727778638052,-1264.0,0.00011,2]
[339636946,1727778638061,-924937.65251834,0.00011,2]
[339636948,1727778638073,-88161.89124824,0.00011,2]
[339636950,1727778638084,-655.6964493,0.00011,2]
[339636951,1727778638095,-500.0,0.00011,2]
[339636952,1727778638111,-698.46349581,0.00011,2]
[339636953,1727778639020,-3500.0,0.00011,2]
[339636954,1727778639031,-297.97689013,0.00011,2]
[339636955,1727778639042,-2510.72,0.00011,2]
[339636956,1727778639053,-8752.22233078,0.00011,2]
[339636957,1727778639066,-2839.82716035,0.00011,2]
[339636958,1727778639078,-2047.08036814,0.00011,2]
[339636959,1727778639092,-2449.85824179,0.00011,2]
[339636960,1727778639103,-347.34341725,0.00011,2]
[339636961,1727778639115,-5041.6,0.00011,2]
[339636962,1727778639126,-3048.31083488,0.00011,2]
[339636965,1727778639461,-1148.0,0.00011,2]
[339636966,1727778639473,-462.53421101,0.00011,2]
[339636967,1727778639546,-30132.31558998,0.00011,2]
[339636968,1727778639557,-10000.0,0.00011,2]
[339636969,1727778639637,-86163.18088201,0.00011,2]
[339636970,1727778639650,-4832.22556236,0.00011,2]
[339636971,1727778639661,-9920.5,0.00011,2]
[339636972,1727778639672,-355.28819844,0.00011,2]
[339636973,1727778639683,-3048.32772882,0.00011,2]
[339636974,1727778639694,-397.63098387,0.00011,2]
[339636975,1727778639861,-706.04,0.00011,2]
[339636976,1727778639873,-425.26754798,0.00011,2]
[339636977,1727778639883,-500.0,0.00011,2]
[339636978,1727778639894,-319.305,0.00011,2]
[339636986,1727778642511,-1310.89655929,0.00011,2]
[339636987,1727778642523,-432.0,0.00011,2]
[339636988,1727778642597,-659.52544,0.00011,2]
[339636989,1727778642609,-2833.13889606,0.00011,2]
[339636990,1727778642620,-715.36994382,0.00011,2]
[339636991,1727778642631,-735.915,0.00011,2]
[339636992,1727778642642,-19225.41725305,0.00011,2]
[339636993,1727778642653,-931.13278959,0.00011,2]
[339636994,1727778642711,-335.80444705,0.00011,2]
[339636995,1727778642723,-5875.66929853,0.00011,2]
[339636996,1727778642734,-1395.13210903,0.00011,2]
[339636997,1727778642745,-1211022.39711289,0.00011,2]
[339636998,1727778642756,-5379.86212123,0.00011,2]
[339636999,1727778642768,-54416.57501164,0.00011,2]
[339637000,1727778642779,-10003.93457314,0.00011,2]
[339637001,1727778642791,-262.89000001,0.00011,2]
[339637002,1727778642802,-530.95163184,0.00011,2]
[339637003,1727778642813,-297.95376087,0.00011,2]
[339637004,1727778642824,-293.30521316,0.00011,2]
[339637006,1727778642836,-12175.6,0.00011,2]
[339637009,1727778645477,-13504.0,0.00011,2]
[339637010,1727778645487,-118289.99999981,0.00011,2]
[339637011,1727778645564,-6640.75,0.00011,2]
[339637012,1727778645942,-659.62500001,0.00011,2]
[339637013,1727778860890,500.0,0.00021999,120]
[339637014,1727778888556,1151.18,8.52e-05,2]
[339637015,1727779019859,184.58,9.589e-05,2]
[339637016,1727779202725,152.73521234,9.589e-05,2]
[339637017,1727779378681,2000.0,0.00022,120]
[339637018,1727779396274,300.0,0.00022,120]
[339637019,1727779396480,300.0,0.00022,120]
[339637020,1727779396677,302.0860061,0.00022,120]
[339637021,1727779457362,1280.43,8.225e-05,2]
[339637022,1727779728391,184.58,9.589e-05,2]
[339637024,1727779805429,252.05602986,9.541e-05,2]
[339637026,1727779831872,-494.9370349,0.00010034,2]
[339637027,1727779831882,-250.0,0.00010034,2]
[339637028,1727779831892,-113.25089194,0.00010035,2]
[339637030,1727779837796,-136.74910806,0.00010035,2]
[339637031,1727779837807,-700.0,0.00010068,2]
[339637032,1727779837816,-700.0,0.00010068,2]
[339637033,1727779837825,-465.94,0.00010097,3]
[339637034,1727779837835,-668.4,0.00010124,2]
[339637035,1727779837844,-23900.0,0.00010125,2]
[339637036,1727779837853,-1000.0,0.00010187,2]
[339637037,1727779837862,-497.47,0.0001026,2]
[339637038,1727779837872,-899.17,0.00010275,2]
[339637039,1727779837883,-1280.43,0.00010489,2]
[339637040,1727779837893,-655.3926,0.00010886,2]
[339637041,1727779837903,-159.8569,0.000109,2]
[339637042,1727779837914,-308.46244625,0.000109,2]
[339637043,1727779837923,-263.679,0.00010911,2]
[339637044,1727779837933,-500.0,0.00010912,2]
[339637045,1727779837942,-150.0,0.00010997,2]
[339637046,1727779837953,-100899.5355386,0.00010998,2]
[339637047,1727779837962,-6137.9145293,0.00010998,2]
[339637048,1727779837971,-33432.78670591,0.00011,2]
[339637049,1727779837980,-1296.0,0.00011,2]
[339637050,1727779837990,-625.0,0.00011,2]
[339637051,1727779837999,-449.0,0.00011,2]
[339637052,1727779838008,-1264.0,0.00011,2]
[339637053,1727779838018,-150.967,0.00011,2]
[339637054,1727779838027,-810.0,0.00011,2]
[339637055,1727779838036,-933.0,0.00011,2]
[339637056,1727779838045,-559.0,0.00011,2]
[339637057,1727779838056,-1905.0,0.00011,2]
[339637058,1727779838065,-554.0,0.00011,2]
[339637059,1727779838075,-807.0,0.00011,2]
[339637060,1727779838085,-1910.0,0.00011,2]
[339637061,1727779838095,-3350.0,0.00011,2]
[339637063,1727779838104,-1148.0,0.00011,2]
[339637064,1727779838113,-13504.0,0.00011,2]
[339637065,1727779838122,-5873.0,0.00011,2]
[339637066,1727779838131,-150.0,0.00011,2]
[339637067,1727779838141,-150.0,0.00011,2]
[339637068,1727779838150,-1082.0,0.00011,2]
[339637069,1727779838160,-1500989.48742079,0.00011,2]
[339637070,1727779838172,-44657.07541753,0.00011,2]
[339637072,1727779839776,-2839.03575,0.00011,2]
[339637083,1727779842641,-24856.3089465,0.00011,2]
[339637084,1727779842653,-261287.03801921,0.00011,2]
[339637085,1727779842665,-1200.0,0.00011,2]
[339637086,1727779842867,-1574.809488,0.00011,2]
[339637087,1727779842879,-10513.26996071,0.00011,2]
[339637088,1727779842890,-5531.28302645,0.00011,2]
[339637089,1727779842902,-5562.72028883,0.00011,2]
[339637091,1727779845576,-150.0,0.00011,2]
[339637092,1727779845585,-384432.86381908,0.00011,2]
[339637094,1727779845690,-2438.53564919,0.00011,2]
[339637095,1727779845701,-1000.54103258,0.00011,2]
[339637096,1727779845722,-965.24945157,0.00011,2]
[339637097,1727780026771,1152.38,8.787e-05,2]
[339637098,1727780547932,1500.0,0.00012899,17]
[339637099,1727780560359,1500.0,0.0001288,16]
[339637100,1727780772094,1094.76,8.34e-05,2]
[339637101,1727780862686,2100.0,0.00022,120]
[339637102,1727780904750,191.0,0.00022,120]
[339637108,1727781032097,-184.0,0.00010067,2]
[339637109,1727781032107,-516.0,0.00010068,2]
[339637115,1727781037940,-184.0,0.00010068,2]
[339637116,1727781037949,-377.82928208,0.00010068,2]
[339637117,1727781037962,-322.17071792,0.00010068,2]
[339637118,1727781037971,-237.89,0.00010189,2]
[339637119,1727781037981,-720.73928227,0.0001022,2]
[339637120,1727781037996,-279.26071773,0.0001022,2]
[339637121,1727781038006,-529.99372365,0.0001022,2]
[339637122,1727781038015,-250.0,0.0001024,2]
[339637123,1727781038025,-300.0,0.00010245,2]
[339637124,1727781038035,-4907.08627004,0.00010246,2]